bitfinex/quotes_ETHUSD_20240907
["timestamp","ask_amount","ask_price","bid_price","bid_amount"]
[1725741189329,1.66432346,2287.2,2287.1,4.37234]
[1725741190071,3.32834043,2287.3,2287.2,4.37215]
[1725741190224,2.71636163,2287.3,2287.2,4.37215]
[1725741190423,4.99494171,2287.3,2287.2,4.37215]
[1725741190737,2.71636163,2287.3,2287.2,8.7443]
[1725741191480,4.99494171,2287.3,2287.2,4.37215]
[1725741192993,5.78564706,2287.3,2287.1,8.74457]
[1725741193148,5.78564706,2287.3,2287.1,4.37224]
[1725741193149,2.28037975,2287.2,2287.1,4.37224]
[1725741193691,2.28092493,2287.2,2287.1,4.37224]
[1725741194985,2.71636163,2287.3,2287.1,4.37224]
[1725741195191,2.28152384,2287.2,2287.1,4.37224]
[1725741195360,2.71636163,2287.3,2287.1,4.37224]
[1725741195553,1.05203817,2287.2,2287.1,4.37224]
[1725741196550,1.05203817,2287.2,2287.0,4.37251]
[1725741196792,2.71636163,2287.1,2287.0,8.74496]
[1725741199668,2.71636163,2287.1,2287.0,4.37245]
[1725741202496,1.22245973,2287.1,2287.0,4.37245]
[1725741202701,2.73900501,2287.3,2287.1,4.37226]
[1725741202879,3.59460602,2287.6,2287.0,3.132215]
[1725741202880,2.73898859,2287.4,2287.2,4.37215]
[1725741203211,2.28252892,2287.3,2287.2,8.7443]
[1725741203580,1.66432346,2287.5,2287.2,4.37215]
[1725741203916,4.40333283,2287.5,2287.3,4.37196]
[1725741204465,5.455371,2287.5,2287.3,4.37196]
[1725741204998,3.79104754,2287.4,2287.3,4.37196]
[1725741205199,1.05203817,2287.4,2287.3,4.37196]
[1725741205603,3.79104754,2287.4,2287.3,4.37196]
[1725741206205,1.05203817,2287.4,2287.3,4.37196]
[1725741206530,3.79104754,2287.4,2287.3,4.37196]
[1725741208023,1.05203817,2287.4,2287.1,8.74436]
[1725741208323,1.05203817,2287.4,2286.9,4.37257]
[1725741208324,1.66432346,2287.2,2286.9,4.37257]
[1725741208635,1.66432346,2287.0,2286.5,6.63105]
[1725741208935,3.94560249,2286.8,2286.7,4.37311]
[1725741209127,4.99764066,2286.8,2286.7,4.37311]
[1725741212336,2.71636163,2286.8,2286.7,4.37311]
[1725741212834,4.99764066,2286.8,2286.7,4.37311]
[1725741213648,4.99701561,2286.8,2286.7,4.37311]
[1725741217365,2.71636163,2286.8,2286.7,4.37311]
[1725741218050,4.99701561,2286.8,2286.7,4.37311]
[1725741219789,4.99701561,2286.8,2286.7,8.74622]
[1725741223779,4.99655905,2286.8,2286.7,8.74622]
[1725741225491,4.99655905,2286.8,2286.7,4.37311]
[1725741225702,4.99655905,2286.8,2286.0,7.37427]
[1725741225703,2.3667,2286.7,2286.3,4.37377]
[1725741225903,1.66432346,2286.4,2286.2,4.37402]
[1725741226090,2.71636163,2286.3,2286.2,4.37397]
[1725741226810,2.71636163,2286.3,2286.2,8.74804]
[1725741230799,2.8893125,2286.3,2286.2,8.74804]
[1725741232153,3.4060656,2286.3,2286.2,4.37397]
[1725741233419,2.8893125,2286.3,2286.2,4.37397]
[1725741236577,5.8524125,2286.3,2285.9,4.37447]
[1725741236861,1.66432346,2286.0,2285.9,4.37447]
[1725741237584,5.91210597,2286.3,2286.0,4.37442]
[1725741237880,1.66432346,2286.1,2286.0,4.37442]
[1725741239238,2.71636163,2286.1,2285.9,4.37447]
[1725741239443,1.66432346,2286.1,2286.0,4.37445]
[1725741239769,1.66432346,2286.1,2286.0,3.32241183]
[1725741240273,2.31664237,2286.1,2285.8,4.37481]
[1725741240565,1.66432346,2285.9,2285.8,4.37483]
[1725741240769,1.66432346,2285.9,2285.7,4.37489]
[1725741240972,0.99461927,2285.8,2285.4,4.37548]
[1725741241280,1.66432346,2285.5,2285.4,4.37548]
[1725741241645,1.66432346,2285.5,2285.3,4.37571]
[1725741241848,1.66432346,2285.5,2285.3,8.75141]
[1725741242035,1.66432346,2285.5,2285.4,4.3756]
[1725741246360,0.66205021,2285.8,2285.7,4.37502]
[1725741246361,0.17161012,2285.8,2285.7,4.37502]
[1725741246571,1.66432346,2285.8,2285.7,8.75004]
[1725741247772,1.08732512,2286.0,2285.9,4.37464]
[1725741247978,0.55100662,2286.3,2286.2,4.37398]
[1725741248276,2.21533008,2286.3,2286.2,4.37398]
[1725741248441,2.75164858,2286.3,2286.2,4.37398]
[1725741249959,5.08548767,2286.3,2286.2,4.37398]
[1725741264775,5.08548767,2286.3,2286.2,8.74805]
[1725741271994,2.75323236,2286.3,2286.2,8.74805]
[1725741273060,2.27877868,2286.6,2286.5,8.74698]
[1725741273269,3.94468592,2286.7,2286.3,2.4061]
[1725741273473,2.27877868,2286.5,2286.4,4.37357]
[1725741273691,3.3661038,2286.5,2286.4,4.37357]
[1725741273862,1.08732512,2286.5,2286.4,4.37357]
[1725741274732,2.75323236,2286.5,2286.4,4.37357]
[1725741274937,2.75323236,2286.5,2286.4,8.74725]
[1725741275099,1.66590724,2286.5,2286.4,8.74725]
[1725741277853,2.75323236,2286.5,2286.4,8.74725]
[1725741281761,3.27387808,2286.5,2286.4,8.74725]
[1725741281921,2.75323236,2286.5,2286.4,8.74725]
[1725741288325,2.20222574,2286.5,2286.4,8.74725]
[1725741289195,4.47966481,2286.5,2286.4,8.74725]
[1725741289370,2.20222574,2286.5,2286.4,8.74725]
[1725741290774,4.47966481,2286.5,2286.4,4.37357]
[1725741290956,4.94517556,2286.5,2286.4,4.37357]
[1725741293698,2.66773649,2286.5,2286.4,4.37357]
[1725741293876,4.94795725,2286.5,2286.4,4.37357]
[1725741294083,4.94795725,2286.5,2286.4,8.74725]
[1725741294282,3.946128,2286.5,2286.4,8.74725]
[1725741294452,1.66590724,2286.5,2286.4,11.11535]
[1725741295799,3.946128,2286.5,2286.4,11.11535]
[1725741295993,1.66590724,2286.5,2286.4,11.11535]
[1725741296356,2.28022076,2286.5,2286.4,11.11535]
[1725741296557,2.28022076,2286.6,2286.5,8.74698]
[1725741297481,2.28022076,2286.6,2286.5,13.12047]
[1725741297685,2.28022076,2286.6,2286.5,8.74698]
[1725741297889,2.81653926,2286.6,2286.5,8.74698]
[1725741298068,0.5363185,2286.6,2286.5,8.74698]
[1725741299805,3.9030658,2286.6,2286.5,4.37349]
[1725741300576,1.6145658,2286.6,2286.5,4.37349]
[1725741301616,1.6145658,2286.6,2286.5,8.74698]
[1725741301908,1.09855918,2286.6,2286.5,8.74698]
[1725741305978,1.09855918,2286.6,2286.5,4.37349]
[1725741306320,2.2757,2286.5,2286.0,4.37433]
[1725741306615,3.94702382,2286.1,2286.0,4.37433]
[1725741306813,2.20222574,2286.1,2286.0,4.37433]
[1725741306996,2.20222574,2286.1,2285.9,4.3745]
[1725741307166,4.93956564,2286.1,2285.8,4.37483]
[1725741307375,3.94688232,2285.9,2285.8,4.37483]
[1725741308439,1.66590724,2285.9,2285.8,4.37483]
[1725741308598,1.66590724,2285.9,2285.8,8.74966]
[1725741309625,1.66590724,2285.9,2285.8,4.37483]
[1725741310989,1.83751134,2285.9,2285.8,4.37483]
[1725741311832,4.11607882,2285.9,2285.8,4.37483]
[1725741312122,1.83751134,2285.9,2285.8,4.37483]
[1725741312331,4.11607882,2285.9,2285.8,4.37483]
[1725741312495,1.83751134,2285.9,2285.8,4.37483]
[1725741312693,4.11607882,2285.9,2285.8,4.37483]
[1725741313337,1.83751134,2285.9,2285.8,4.37483]
[1725741317121,2.37382984,2285.9,2285.8,4.37483]
[1725741321331,2.88983646,2285.9,2285.8,4.37483]
[1725741326497,2.72949844,2286.3,2286.1,4.37421]
[1725741326701,2.20222574,2286.2,2286.1,4.37421]
[1725741328050,2.71823236,2286.2,2286.0,4.37444]
[1725741328345,2.18191386,2286.1,2286.0,4.37444]
[1725741328505,3.23508648,2286.1,2286.0,4.37444]
[1725741330127,5.60588648,2286.1,2285.7,4.37499]
[1725741330343,1.66590724,2285.9,2285.7,4.37499]
[1725741330534,2.20222574,2285.9,2285.7,4.37499]
[1725741332325,2.20222574,2285.9,2284.7,4.37685]
[1725741332326,4.37598,2285.3,2284.8,6.73655]
[1725741332565,1.66590724,2284.9,2284.8,11.11308]
[1725741332867,0.68918273,2285.2,2285.1,4.37617]
[1725741333037,0.68918273,2285.2,2284.9,4.37655]
[1725741333038,2.6514066,2285.2,2285.0,4.37635]
[1725741333222,3.2708251,2285.2,2285.0,4.37635]
[1725741334663,0.6194185,2285.1,2284.9,4.37655]
[1725741334869,2.35508997,2285.0,2284.9,4.37655]
[1725741335054,2.97450847,2285.0,2284.8,6.73664]
[1725741335921,0.0909164,2284.9,2284.8,6.73664]
[1725741336321,0.78009913,2284.9,2284.7,8.75366]
[1725741336552,0.78009913,2284.9,2284.7,4.37682]
[1725741336762,0.78009913,2284.9,2284.7,8.75365]
[1725741337149,0.78009913,2284.9,2284.7,8.75366]
[1725741338838,0.78009913,2284.9,2284.8,4.37675]
[1725741339253,0.78009913,2284.9,2284.8,11.0379]
[1725741339653,1.39951763,2284.9,2284.8,11.0379]
[1725741340346,1.39951763,2284.9,2284.8,8.7535]
[1725741343879,1.39951763,2284.9,2284.8,4.37675]
[1725741349217,1.39951763,2284.9,2284.7,6.68301]
[1725741349426,0.0909164,2284.9,2284.8,4.37675]
[1725741349617,1.75682364,2284.9,2284.7,4.37681]
[1725741349805,1.66590724,2284.9,2284.8,4.37675]
[1725741351326,2.29765808,2284.9,2284.8,4.37675]
[1725741351484,2.38869574,2284.9,2284.8,4.37675]
[1725741357393,2.95649603,2284.9,2284.8,4.37675]
[1725741361760,1.29058879,2284.9,2284.8,8.7535]
[1725741361918,1.29058879,2284.9,2284.8,11.1453]
[1725741361919,1.7569449,2284.9,2284.8,11.1453]
[1725741364072,2.95649603,2284.9,2284.8,11.1453]
[1725741366658,2.95649603,2284.9,2284.8,4.37675]
[1725741366968,2.2586,2284.8,2284.4,4.37736]
[1725741367127,1.66590724,2284.5,2284.4,4.37736]
[1725741367328,2.38798638,2284.5,2284.4,4.37736]
[1725741368180,2.38798638,2284.5,2284.3,4.37768]
[1725741368337,2.2586,2284.3,2284.2,0.0773868]
[1725741368546,2.2586,2284.3,2283.4,6.86552]
[1725741368547,9.64309531,2284.3,2283.8,4.37863]
[1725741368848,9.64309531,2284.3,2283.4,4.37931]
[1725741368849,3.92450724,2283.9,2283.4,4.37931]
[1725741369046,3.92450724,2283.9,2283.4,4.37943]
[1725741369047,1.66590724,2283.5,2283.4,4.37943]
[1725741369283,1.75309175,2283.5,2283.3,4.37951]
[1725741369584,2.40900925,2283.5,2283.4,4.37943]
[1725741369877,2.40900925,2283.5,2283.4,8.75886]
[1725741369878,1.75309175,2283.5,2283.4,8.75886]
[1725741370082,0.08718451,2283.5,2283.4,8.75886]
[1725741370279,0.17844908,2283.6,2283.2,4.37976]
[1725741370448,4.00744267,2283.7,2283.5,4.37924]
[1725741370779,4.00744267,2283.7,2283.6,4.37905]
[1725741371154,4.66336017,2283.7,2283.6,4.37905]
[1725741371592,4.66336017,2283.7,2283.6,8.7581]
[1725741373467,0.6559175,2283.7,2283.6,8.7581]
[1725741374384,0.7428763,2283.7,2283.6,8.7581]
[1725741375174,0.0869588,2283.7,2283.6,16.937081]
[1725741375589,1.25205112,2284.1,2284.0,4.37828]
[1725741376090,1.25205112,2284.1,2284.0,8.75656]
[1725741376587,5.24373,2284.6,2284.4,4.37735]
[1725741376788,5.24373,2284.6,2284.1,4.37793]
[1725741376789,0.6559175,2284.5,2284.1,4.37793]
[1725741376994,5.25949379,2284.5,2284.0,2.4479]
[1725741377691,5.25949379,2284.5,2284.2,4.37786]
[1725741377994,4.00744267,2284.3,2283.8,2.4479]
[1725741378202,1.25205112,2284.2,2284.1,4.32799]
[1725741378353,4.00744267,2284.1,2284.0,4.37814]
[1725741378551,5.34389268,2284.1,2284.0,8.75642]
[1725741380175,5.34389268,2284.1,2284.0,4.37814]
[1725741380354,5.87828195,2284.1,2284.0,4.37814]
[1725741381363,5.87828195,2284.1,2284.0,8.75642]
[1725741381567,5.34389268,2284.1,2284.0,8.75642]
[1725741385707,1.33645001,2284.1,2284.0,8.75642]
[1725741385911,0.08439889,2284.1,2284.0,8.75642]
[1725741386070,4.00744267,2284.3,2284.2,4.3779]
[1725741386271,4.74579723,2284.3,2284.2,4.3779]
[1725741386810,5.34193085,2284.3,2284.2,4.3779]
[1725741387108,5.34193085,2284.3,2284.2,8.7558]
[1725741387305,1.33448818,2284.3,2284.2,8.7558]
[1725741389108,1.33448818,2284.3,2284.2,13.1337]
[1725741395133,1.33448818,2284.3,2284.2,15.5003]
[1725741395737,1.33448818,2284.3,2284.2,11.1224]
[1725741395938,1.33448818,2284.3,2284.2,8.7558]
[1725741403168,1.33448818,2284.3,2284.2,4.3779]
[1725741403834,1.33448818,2284.3,2284.2,8.7558]
[1725741404042,1.698867,2284.3,2284.2,8.7558]
[1725741405835,1.33448818,2284.3,2284.2,8.7558]
[1725741411809,0.73835456,2284.3,2284.2,8.7558]
[1725741413578,0.73835456,2284.3,2284.2,15.4843]
[1725741419830,0.08243706,2284.3,2284.2,15.4843]
[1725741420184,1.25205112,2284.6,2284.5,8.75464]
[1725741421638,6.38390405,2284.6,2284.4,4.37749]
[1725741421782,2.3155,2284.4,2284.3,4.37754]
[1725741421982,3.56755112,2284.4,2284.3,4.37754]
[1725741422210,4.41837634,2284.4,2284.3,4.37754]
[1725741423908,4.41837634,2284.4,2284.3,8.75524]
[1725741423909,3.61236897,2284.4,2284.3,8.75524]
[1725741424878,1.33220639,2284.4,2284.3,4.37754]
[1725741425160,3.64770639,2284.4,2284.3,4.37754]
[1725741425365,6.38398379,2284.4,2284.2,4.37788]
[1725741425665,6.295518,2284.3,2283.9,4.37833]
[1725741425869,6.295518,2284.3,2284.0,4.37828]
[1725741425870,2.2800294,2284.1,2284.0,4.37828]
[1725741426156,1.33140008,2284.1,2284.0,4.37828]
[1725741426359,1.84205374,2284.1,2284.0,4.37828]
[1725741426563,4.13105374,2284.1,2284.0,4.37828]
[1725741426726,8.13566147,2284.1,2284.0,4.37828]
[1725741427136,8.13566147,2284.1,2282.9,0.91678232]
[1725741427137,2.289,2284.0,2282.9,5.29713232]
[1725741427337,2.27899836,2283.5,2283.3,4.37948]
[1725741427551,4.08271398,2283.4,2283.3,4.37948]
[1725741427754,0.07810625,2283.4,2283.3,8.7591]
[1725741427942,1.21402692,2283.9,2283.6,4.37905]
[1725741427943,2.27802048,2283.7,2283.6,4.37905]
[1725741428140,0.07839827,2283.7,2283.6,4.37905]
[1725741428376,2.27802048,2283.8,2283.6,4.37905]
[1725741428575,2.45146453,2283.8,2283.7,8.7577]
[1725741428795,2.53023164,2283.8,2283.7,8.7577]
[1725741429285,0.90812866,2283.8,2283.7,8.7577]
[1725741429772,0.73468461,2283.8,2283.7,8.7577]
[1725741429979,0.73468461,2283.8,2283.7,9.63347]
[1725741433991,1.33081823,2283.8,2283.7,8.7577]
[1725741440307,1.33081823,2283.8,2283.7,4.37885]
[1725741440817,5.33542596,2283.8,2283.7,4.37885]
[1725741441599,5.33542596,2283.8,2283.6,4.37898]
[1725741441913,2.4695,2283.6,2283.4,4.37927]
[1725741442076,4.00460773,2283.5,2283.4,4.37927]
[1725741442280,4.07967714,2283.5,2283.4,4.37927]
[1725741443402,4.07967714,2283.5,2283.4,8.7587]
[1725741443731,0.07506941,2283.5,2283.4,8.7587]
[1725741444201,0.73098691,2283.5,2283.4,8.7587]
[1725741447239,4.73559464,2283.5,2283.4,8.7587]
[1725741447601,7.80122826,2283.5,2283.4,4.37927]
[1725741447815,5.33172826,2283.5,2283.4,4.37927]
[1725741448803,5.33172826,2283.5,2283.4,8.7587]
[1725741449005,0.73098691,2283.5,2283.4,8.7587]
[1725741454062,2.40085909,2283.5,2283.4,8.7587]
[1725741460071,0.73098691,2283.5,2283.4,13.13813]
[1725741461195,2.40085909,2283.5,2283.4,8.7587]
[1725741461493,2.99699271,2283.5,2283.4,8.7587]
[1725741468471,1.32712053,2283.5,2283.4,8.7587]
[1725741468968,5.93484877,2283.5,2283.4,4.37927]
[1725741470101,8.21113467,2283.5,2283.4,4.37927]
[1725741473524,5.81773467,2283.5,2283.4,4.37927]
[1725741478305,5.81945924,2283.5,2283.4,4.37927]
[1725741478519,3.54144877,2283.5,2283.4,4.37927]
[1725741484940,6.27839183,2283.5,2283.4,4.37927]
[1725741485234,6.27839183,2283.5,2283.3,4.37962]
[1725741485235,8.72439183,2283.5,2283.3,4.37962]
[1725741485400,4.86143336,2283.4,2283.3,8.75916]
[1725741485600,4.93074435,2283.4,2283.3,8.75916]
[1725741486633,4.93133386,2283.4,2283.3,8.75916]
[1725741486835,4.93137556,2283.4,2283.3,8.75916]
[1725741487196,4.93130948,2283.4,2283.3,8.75916]
[1725741488139,1.32136211,2283.4,2283.3,8.75916]
[1725741488964,0.06931099,2283.4,2283.3,11.17746]
[1725741489102,0.06931099,2283.4,2283.3,15.55708]
[1725741489498,4.60696789,2283.6,2283.5,8.75848]
[1725741489703,5.20310151,2283.6,2283.5,8.75848]
[1725741489923,5.20316621,2283.6,2283.5,8.75848]
[1725741491244,5.20309782,2283.6,2283.5,8.75848]
[1725741491754,2.9219233,2283.6,2283.5,8.75848]
[1725741492067,5.20303165,2283.6,2283.5,8.75848]
[1725741492249,2.9219233,2283.6,2283.5,8.75848]
[1725741492548,5.20305052,2283.6,2283.5,8.75848]
[1725741492840,2.98871166,2283.6,2283.5,8.75848]
[1725741493221,5.26969077,2283.6,2283.5,8.75848]
[1725741496542,2.98871166,2283.6,2283.5,8.75848]
[1725741497876,5.26948928,2283.6,2283.5,8.75848]
[1725741498237,5.26950672,2283.6,2283.5,8.75848]
[1725741498763,2.98871166,2283.6,2283.5,8.75848]
[1725741498968,2.94441868,2283.6,2283.5,14.693359]
[1725741499171,5.06e-06,2283.9,2283.7,4.37885]
[1725741499381,7.98056695,2284.1,2283.7,4.37885]
[1725741499382,5.24373,2284.1,2284.0,8.75656]
[1725741499550,1.21038446,2284.2,2284.1,8.75618]
[1725741500061,0.06070297,2284.2,2284.1,16.935435]
[1725741500262,1.21038446,2284.5,2284.4,8.75502]
[1725741500437,1.27181981,2284.5,2284.4,8.75502]
[1725741500637,0.65756897,2284.5,2284.4,15.62023]
[1725741500952,0.06143535,2284.5,2284.4,15.62023]
[1725741501265,1.21038446,2284.8,2284.7,8.75388]
[1725741501448,0.67637207,2284.8,2284.7,15.61852]
[1725741501650,1.27250569,2284.8,2284.7,11.24158]
[1725741506980,2.94237787,2284.8,2284.7,4.37694]
[1725741509711,3.11955558,2284.8,2284.7,4.37694]
[1725741509878,2.94237787,2284.8,2284.7,4.37694]
[1725741510464,1.27250569,2284.8,2284.7,4.37694]
[1725741512807,1.27250569,2284.8,2284.7,8.75388]
[1725741512970,0.06212123,2284.8,2284.7,12.055984]
[1725741513484,0.59613362,2285.0,2284.9,4.37655]
[1725741513672,1.21038446,2285.0,2284.9,4.37655]
[1725741514395,1.27165964,2285.0,2284.9,4.37655]
[1725741520039,1.27165964,2285.0,2284.8,4.37671]
[1725741520256,2.88025664,2284.9,2284.8,4.37671]
[1725741520561,2.94113568,2284.9,2284.8,4.37671]
[1725741522729,0.06087904,2284.9,2284.8,8.75346]
[1725741523128,1.84162586,2285.1,2285.0,4.37636]
[1725741523329,3.05201032,2285.1,2285.0,4.37636]
[1725741523969,3.11265017,2285.1,2285.0,4.37636]
[1725741529345,3.11265017,2285.1,2285.0,8.75272]
[1725741532478,1.27102431,2285.1,2285.0,8.75272]
[1725741532649,0.65677347,2285.1,2285.0,12.32326]
[1725741532854,0.06063985,2285.1,2285.0,16.69962]
[1725741533033,0.59613362,2285.3,2285.2,8.75196]
[1725741533234,1.26553882,2285.3,2285.2,8.75196]
[1725741533486,1.26553882,2285.3,2285.2,10.421846]
[1725741538092,1.26553882,2285.3,2285.0,4.37621]
[1725741538297,1.66987218,2285.1,2285.0,4.37621]
[1725741538441,2.320858,2285.1,2285.0,4.37621]
[1725741538645,2.93510884,2285.1,2285.0,4.37621]
[1725741543449,0.65098582,2285.1,2285.0,4.37621]
[1725741543684,0.65098582,2285.1,2285.0,9.854532]
[1725741544152,0.82601015,2285.1,2285.0,9.854532]
[1725741544353,0.82601015,2285.1,2285.0,8.75257]
[1725741546815,3.10580073,2285.1,2285.0,8.75257]
[1725741547513,3.72005157,2285.1,2285.0,8.75257]
[1725741550723,3.12391795,2285.1,2285.0,8.75257]
[1725741551137,3.12519847,2285.1,2285.0,8.75257]
[1725741551285,3.12500308,2285.1,2285.0,8.75257]
[1725741552421,2.94997875,2285.1,2285.0,9.627827]
[1725741552587,0.0548522,2285.1,2285.0,11.894727]
[1725741553328,2.28087571,2285.3,2285.2,8.75196]
[1725741553521,2.89512655,2285.3,2285.2,8.75196]
[1725741554084,1.66987218,2285.5,2285.4,4.3756]
[1725741554314,5.02117388,2285.5,2285.3,4.37568]
[1725741554486,1.14158446,2285.4,2285.3,4.37568]
[1725741555600,5.15805664,2285.4,2285.1,4.37615]
[1725741555821,3.95115515,2285.2,2285.1,4.37615]
[1725741556142,2.81145664,2285.2,2285.1,4.37615]
[1725741556740,2.8666749,2285.2,2285.1,4.37615]
[1725741559547,2.95036781,2285.2,2285.1,8.75232]
[1725741561213,2.94972474,2285.2,2285.1,8.75232]
[1725741563622,3.12504812,2285.2,2285.1,8.75232]
[1725741566221,3.12377089,2285.2,2285.1,8.75232]
[1725741566823,0.84479248,2285.2,2285.1,4.37615]
[1725741567067,0.84479248,2285.2,2285.0,4.37634]
[1725741567239,2.28412302,2285.1,2285.0,4.37634]
[1725741567571,2.33919032,2285.1,2285.0,4.37634]
[1725741570363,2.33919032,2285.1,2284.9,4.37642]
[1725741570562,2.27890077,2285.0,2284.9,4.37642]
[1725741570861,3.6210697,2285.0,2284.6,4.37696]
[1725741571021,1.66987218,2284.7,2284.6,4.37696]
[1725741571238,3.94857484,2284.7,2284.6,4.37696]
[1725741571444,4.00376822,2284.7,2284.6,4.37696]
[1725741573955,1.72506556,2284.7,2284.6,4.37696]
[1725741574355,4.00376822,2284.7,2284.6,4.37696]
[1725741574554,1.72506556,2284.7,2284.6,4.37696]
[1725741575649,4.00376822,2284.7,2284.6,4.37696]
[1725741576043,1.72506556,2284.7,2284.6,4.37696]
[1725741578254,4.00249678,2284.7,2284.6,4.37696]
[1725741578446,2.3393164,2284.7,2284.6,4.37696]
[1725741579084,2.51120068,2284.7,2284.6,4.37696]
[1725741581803,2.51120068,2284.7,2284.6,4.37615349]
[1725741582589,4.78740215,2284.7,2284.6,4.37615349]
[1725741584010,6.82873,2284.6,2284.1,4.37798]
[1725741584164,1.66987218,2284.2,2284.1,4.37798]
[1725741584367,2.28412302,2284.2,2284.0,4.37825]
[1725741584587,2.28412302,2284.2,2283.7,4.37883]
[1725741584588,0.84266314,2284.1,2283.7,4.37883]
[1725741584797,0.84266314,2284.1,2283.6,4.37891]
[1725741584798,1.66987218,2283.9,2283.6,4.37891]
[1725741585108,2.28412302,2283.9,2283.7,4.37876]
[1725741585261,0.05204241,2283.8,2283.7,4.37876]
[1725741585906,0.05204241,2283.8,2283.7,8.75761]
[1725741591581,0.05204241,2283.8,2283.7,17.096077]
[1725741591782,0.05204241,2283.8,2283.7,24.474927]
[1725741591981,0.61425084,2284.2,2284.1,8.75618]
[1725741592781,1.1417997,2284.2,2284.1,8.75618]
[1725741593926,1.19372335,2284.2,2284.1,4.37809]
[1725741598028,0.66617449,2284.2,2284.1,4.37809]
[1725741599735,1.19372335,2284.2,2284.1,4.37809]
[1725741601490,3.9297829,2284.2,2284.0,4.37811]
[1725741601699,2.28412302,2284.1,2284.0,4.37811]
[1725741602241,2.33637769,2284.1,2284.0,4.37811]
[1725741606401,2.33637769,2284.1,2284.0,8.75639]
[1725741606402,0.05225467,2284.1,2284.0,8.75639]
[1725741606615,1.66987218,2284.3,2284.2,4.3779]
[1725741607014,1.72257684,2284.3,2284.2,4.3779]
[1725741607397,2.33682768,2284.3,2284.2,4.3779]
[1725741608007,2.86437654,2284.3,2284.2,4.3779]
[1725741615460,3.377438,2284.3,2284.2,4.3779]
[1725741615629,5.827138,2284.3,2284.2,4.3779]
[1725741618531,2.86437654,2284.3,2284.2,4.3779]
[1725741622572,2.86437654,2284.3,2284.2,8.7558]
[1725741622912,1.72257684,2284.3,2284.2,8.7558]
[1725741624916,1.72257684,2284.3,2284.2,15.3917]
[1725741624917,0.05270466,2284.3,2284.2,15.3917]
[1725741625280,1.84530441,2284.5,2284.4,8.75502]
[1725741625513,2.45955525,2284.5,2284.4,8.75502]
[1725741625694,2.98710411,2284.5,2284.4,8.75502]
[1725741626885,3.03571654,2284.5,2284.4,8.75502]
[1725741630308,3.03571654,2284.5,2284.4,11.01302]
[1725741630638,3.03571654,2284.5,2284.4,16.929622]
[1725741630639,0.04861243,2284.5,2284.4,16.929622]
[1725741630943,1.66987218,2284.7,2284.6,8.75426]
[1725741631143,2.28412302,2284.7,2284.6,8.75426]
[1725741631320,2.72602566,2285.0,2284.6,8.75426]
[1725741631321,2.27168805,2285.0,2284.8,4.37675]
[1725741631500,2.27168805,2285.2,2285.0,6.63436]
[1725741631848,2.27168805,2285.3,2285.2,8.75196]
[1725741632000,2.88593889,2285.4,2285.3,8.75158]
[1725741632200,0.61425084,2285.4,2285.3,8.75158]
[1725741632697,1.1417997,2285.4,2285.3,8.75158]
[1725741634312,1.23258768,2285.4,2285.3,8.75158]
[1725741637129,1.23258768,2285.4,2285.3,4.37579]
[1725741637327,1.77943089,2285.4,2285.3,4.37579]
[1725741637727,1.68864291,2285.4,2285.3,4.37579]
[1725741639357,1.1417997,2285.4,2285.3,4.37579]
[1725741642601,0.1757722,2285.6,2285.3,4.37579]
[1725741642602,1.84564438,2285.6,2285.5,4.37541]
[1725741642798,1.66987218,2285.6,2285.5,4.37541]
[1725741644027,2.81167188,2285.6,2285.5,4.37541]
[1725741649165,2.98426807,2285.6,2285.5,4.37541]
[1725741656011,5.38236807,2285.6,2285.2,4.37584]
[1725741656361,1.66987218,2285.3,2285.2,4.37598]
[1725741657240,2.81167188,2285.5,2285.3,4.37578]
[1725741659465,2.81167188,2285.5,2285.4,4.3756]
[1725741659466,1.66987218,2285.5,2285.4,4.3756]
[1725741660062,2.28412302,2285.5,2285.4,4.3756]
[1725741661372,3.0573438,2285.5,2285.2,4.37596]
[1725741661580,1.66987218,2285.3,2285.1,4.37606]
[1725741661870,1.66987218,2285.3,2284.3,4.37769]
[1725741661871,8.0062297,2285.2,2284.7,4.37682]
[1725741662173,1.66987218,2284.8,2284.7,4.37682]
[1725741662577,2.28412302,2284.8,2284.6,4.37712]
[1725741663069,2.28412302,2284.8,2284.7,4.37694]
[1725741663930,2.28412302,2284.8,2284.6,4.37713]
[1725741664148,0.61425084,2284.7,2284.6,4.37713]
[1725741666455,0.61425084,2284.7,2284.4,8.75476]
[1725741666655,1.66987218,2284.6,2284.4,8.75476]
[1725741668657,1.66987218,2284.6,2284.5,8.75464]
[1725741668861,0.78541672,2284.7,2284.5,4.37732]
[1725741669383,1.66987218,2285.0,2284.6,2.4363]
[1725741669611,1.66987218,2285.0,2284.6,2.52383134]
[1725741669782,2.28412302,2285.0,2284.6,2.52383134]
[1725741670606,2.28412302,2285.0,2284.9,4.37644]
[1725741670764,2.81167188,2285.0,2284.9,4.37644]
[1725741672891,2.81167188,2285.0,2284.9,8.75299]
[1725741676623,2.26664902,2285.6,2285.4,4.3756]
[1725741676836,1.66987218,2285.5,2285.3,4.37565]
[1725741677050,2.16358771,2285.5,2285.3,4.37565]
[1725741677205,2.16358771,2285.5,2285.4,4.3756]
[1725741677747,2.16358771,2285.5,2285.4,8.7512]
[1725741678039,0.49371553,2285.5,2285.4,8.7512]
[1725741679204,0.17608438,2285.6,2285.5,4.37541]
[1725741679509,6.27010942,2285.7,2285.6,4.37521]
[1725741680339,4.00068953,2285.7,2285.6,4.37521]
[1725741681099,4.00068953,2285.7,2285.5,8.75071]
[1725741681317,9.22119192,2285.7,2285.4,4.37559]
[1725741681514,4.00068953,2285.5,2285.4,4.37559]
[1725741682215,4.00068953,2285.5,2285.3,4.37576]
[1725741683009,4.00068953,2285.5,2285.4,4.3756]
[1725741685152,0.49371553,2285.6,2285.4,4.3756]
[1725741685457,8.71981549,2285.7,2285.5,8.75066]
[1725741685669,4.17669926,2285.7,2285.6,4.37521]
[1725741686167,6.44511549,2285.7,2285.6,4.37521]
[1725741686344,4.17669926,2285.7,2285.6,4.37521]
[1725741688649,4.17669926,2285.7,2285.5,4.37525]
[1725741688965,4.17669926,2285.7,2285.2,4.37596]
[1725741688966,5.75342972,2285.7,2285.2,4.37596]
[1725741689269,2.2788,2285.5,2285.4,4.3756]
[1725741693173,2.2788,2285.5,2285.3,8.75139]
[1725741693343,2.2788,2285.5,2285.4,4.3756]